fUSD/lending_fUSD_20240505
["ID","MTS","AMOUNT","RATE_DAILY","PERIOD"]
[326446271,1714915874017,-1039.87,0.00033972,8]
[326446272,1714915874029,-1638.75,0.00033972,8]
[326446273,1714915874041,-2155.45,0.00033972,8]
[326446274,1714915874053,-500.0,0.00033972,8]
[326446275,1714915874064,-772.66,0.00033972,8]
[326446276,1714915874077,-1025.2,0.00033972,8]
[326446277,1714915874090,-1717.6,0.00033972,8]
[326446278,1714915874102,-1651.01,0.00033972,8]
[326446279,1714915874113,-1939.75,0.00033972,8]
[326446280,1714915874125,-1227.88,0.00033972,8]
[326446281,1714915874137,-1682.89,0.00033972,8]
[326446282,1714915874149,-1205.56,0.00033972,8]
[326446283,1714915874160,-500.0,0.00033972,8]
[326446284,1714915874172,-1747.37,0.00033972,8]
[326446285,1714915874182,-2215.85,0.00033972,8]
[326446286,1714915874191,-649.64,0.00033972,8]
[326446287,1714915874200,-566.84,0.00033972,8]
[326446288,1714915874212,-500.0,0.00033972,8]
[326446289,1714915874223,-1356.01,0.00033972,8]
[326446290,1714915874232,-500.0,0.00033972,8]
[326446291,1714915874241,-1176.3,0.00033972,8]
[326446292,1714915874250,-1366.45,0.00033972,8]
[326446293,1714915874263,-684.39,0.00033972,8]
[326446294,1714915874273,-879.33,0.00033972,8]
[326446295,1714915874282,-920.07,0.00033972,8]
[326446296,1714915874587,-1031.58,0.00033972,8]
[326446297,1714915874622,-2063.31,0.00033972,8]
[326446298,1714915874638,-2434.24,0.00033972,8]
[326446299,1714915874647,-597.44,0.00033972,8]
[326446300,1714915874656,-713.31,0.00033972,8]
[326446301,1714915874664,-500.0,0.00033972,2]
[326446302,1714915874673,-600.45,0.00033972,8]
[326446303,1714915874681,-500.0,0.00033972,8]
[326446304,1714915874690,-952.7,0.00033972,8]
[326446305,1714915874699,-500.0,0.00033972,8]
[326446306,1714915874708,-802.54,0.00033972,8]
[326446307,1714915874718,-1024.94,0.00033972,8]
[326446308,1714915874728,-802.41,0.00033972,8]
[326446309,1714915874737,-687.56,0.00033972,8]
[326446310,1714915874746,-2386.25,0.00033972,8]
[326446311,1714915874756,-1223.23,0.00033972,8]
[326446312,1714915874765,-854.56,0.00033972,8]
[326446313,1714915874774,-268.48254083,0.00033972,8]
[326446314,1714915874783,-500.0,0.00033972,8]
[326446315,1714915874792,-500.0,0.00033972,8]
[326446316,1714915874801,-1748.83,0.00033972,8]
[326446317,1714915874811,-527.62,0.00033972,8]
[326446318,1714915874820,-803.14,0.00033972,8]
[326446319,1714915874829,-3740.0,0.00033972,8]
[326446320,1714915874839,-1004.08,0.00033972,8]
[326446321,1714915874848,-1502.83,0.00033972,8]
[326446322,1714915874857,-500.0,0.00033972,8]
[326446323,1714915874867,-500.0,0.00033972,8]
[326446324,1714915874875,-500.0,0.00033972,8]
[326446325,1714915874884,-500.0,0.00033972,8]
[326446326,1714915874894,-1438.2,0.00033972,8]
[326446327,1714915874903,-500.0,0.00033972,8]
[326446328,1714915874913,-500.0,0.00033972,8]
[326446329,1714915874922,-500.0,0.00033972,8]
[326446330,1714915874932,-1909.06,0.00033972,8]
[326446331,1714915874941,-913.79,0.00033972,8]
[326446332,1714915874950,-577.34,0.00033972,8]
[326446333,1714915874959,-500.0,0.00033972,8]
[326446334,1714915874968,-596.69,0.00033972,8]
[326446335,1714915874978,-660.81,0.00033972,8]
[326446336,1714915874988,-717.92,0.00033972,8]
[326446337,1714915874998,-605.11,0.00033972,8]
[326446338,1714915875008,-500.0,0.00033972,8]
[326446339,1714915875018,-274.91165022,0.00033972,8]
[326446340,1714915875027,-776.57,0.00033972,8]
[326446341,1714915875036,-986.28,0.00033972,8]
[326446342,1714915875045,-1164.45,0.00033972,8]
[326446343,1714915875054,-1851.14,0.00033972,8]
[326446344,1714915875064,-500.0,0.00033972,8]
[326446345,1714915875073,-1222.01,0.00033972,8]
[326446346,1714915875082,-500.0,0.00033972,8]
[326446347,1714915875092,-589.56,0.00033972,8]
[326446348,1714915875101,-801.86,0.00033972,8]
[326446349,1714915875110,-500.0,0.00033972,8]
[326446350,1714915875120,-1661.78,0.00033972,8]
[326446351,1714915875129,-628.8,0.00033972,8]
[326446352,1714915875138,-500.0,0.00033972,8]
[326446353,1714915875148,-2313.78,0.00033972,8]
[326446354,1714915875157,-1704.0,0.00033972,8]
[326446355,1714915875166,-2846.64,0.00033972,8]
[326446356,1714915875175,-500.0,0.00033972,8]
[326446357,1714915875185,-500.0,0.00033972,8]
[326446358,1714915875194,-1167.95,0.00033972,8]
[326446359,1714915875209,-1036.27,0.00033972,8]
[326446360,1714915875218,-1244.75,0.00033972,8]
[326446361,1714915875227,-1662.54,0.00033972,8]
[326446362,1714915875237,-500.0,0.00033972,8]
[326446363,1714915875247,-1214.84,0.00033972,8]
[326446364,1714915875257,-1924.39,0.00033972,8]
[326446365,1714915875267,-500.0,0.00033972,8]
[326446366,1714915875276,-2178.68,0.00033972,8]
[326446367,1714915875288,-707.19,0.00033972,8]
[326446368,1714915875298,-538.64,0.00033972,8]
[326446369,1714915875307,-1834.53,0.00033972,8]
[326446370,1714915875316,-500.0,0.00033972,8]
[326446371,1714915875325,-727.02,0.00033972,8]
[326446372,1714915875335,-2359.18,0.00033972,8]
[326446373,1714915875343,-592.28,0.00033972,8]
[326446374,1714915875352,-728.13,0.00033972,8]
[326446375,1714915875362,-500.0,0.00033972,8]
[326446376,1714915875371,-830.03,0.00033972,8]
[326446377,1714915875380,-5000.0,0.00033972,8]
[326446378,1714915875390,-678.1,0.00033972,8]
[326446379,1714915875399,-500.0,0.00033972,8]
[326446380,1714915875408,-666.82,0.00033972,8]
[326446381,1714915875417,-850.81,0.00033972,8]
[326446382,1714915875426,-1351.18,0.00033972,8]
[326446383,1714915875435,-500.0,0.00033972,8]
[326446384,1714915875444,-500.0,0.00033972,8]
[326446385,1714915875454,-1570.77,0.00033972,8]
[326446386,1714915875463,-587.14,0.00033972,8]
[326446387,1714915875472,-1869.51,0.00033972,8]
[326446388,1714915875481,-1759.58,0.00033972,8]
[326446389,1714915875490,-2359.56,0.00033972,8]
[326446390,1714915875499,-844.39,0.00033972,8]
[326446391,1714915875510,-500.0,0.00033972,8]
[326446392,1714915875519,-1055.67,0.00033972,8]
[326446393,1714915875528,-513.49,0.00033972,8]
[326446394,1714915875537,-1478.45,0.00033972,8]
[326446395,1714915875546,-1000.0,0.00033972,8]
[326446396,1714915875555,-756.48,0.00033972,8]
[326446397,1714915875564,-500.0,0.00033972,8]
[326446398,1714915875573,-973.01,0.00033972,8]
[326446399,1714915875582,-687.56,0.00033972,8]
[326446400,1714915875591,-2401.96,0.00033972,8]
[326446401,1714915875601,-500.0,0.00033972,8]
[326446402,1714915875610,-2109.99,0.00033972,8]
[326446403,1714915875619,-531.18,0.00033972,8]
[326446404,1714915875628,-662.28,0.00033972,8]
[326446405,1714915875637,-1671.18,0.00033972,8]
[326446406,1714915875646,-2339.15,0.00033972,8]
[326446407,1714915875655,-669.8,0.00033972,8]
[326446408,1714915875664,-500.0,0.00033972,8]
[326446409,1714915875673,-774.07,0.00033972,8]
[326446410,1714915875683,-907.67,0.00033972,8]
[326446411,1714915875692,-618.04,0.00033972,8]
[326446412,1714915875701,-1898.13,0.00033972,8]
[326446413,1714915875710,-500.0,0.00033972,8]
[326446414,1714915875719,-1680.72,0.00033972,8]
[326446415,1714915875728,-643.34,0.00033972,8]
[326446416,1714915875736,-500.0,0.00033972,8]
[326446417,1714915875745,-569.24,0.00033972,8]
[326446418,1714915875754,-775.67,0.00033972,8]
[326446419,1714915875767,-500.0,0.00033972,8]
[326446420,1714915875776,-530.04,0.00033972,8]
[326446421,1714915875785,-582.48,0.00033972,8]
[326446422,1714915875795,-1161.44,0.00033972,8]
[326446423,1714915875804,-500.0,0.00033972,8]
[326446424,1714915875814,-500.0,0.00033972,8]
[326446425,1714915875823,-2117.46,0.00033972,8]
[326446426,1714915875832,-500.0,0.00033972,8]
[326446427,1714915875843,-2232.6,0.00033972,8]
[326446428,1714915875851,-1520.5,0.00033972,8]
[326446429,1714915875861,-1838.26,0.00033972,8]
[326446430,1714915875870,-500.0,0.00033972,8]
[326446431,1714915875881,-500.0,0.00033972,8]
[326446432,1714915875893,-585.14842203,0.00033972,8]
[326446433,1714915875903,-500.0,0.00033972,8]
[326446434,1714915875912,-1743.94,0.00033972,8]
[326446435,1714915875921,-556.22,0.00033972,8]
[326446436,1714915875930,-2722.39,0.00033972,8]
[326446437,1714915875940,-1674.63,0.00033972,8]
[326446438,1714915875951,-500.0,0.00033972,8]
[326446439,1714915875960,-1022.83,0.00033972,8]
[326446440,1714915875970,-1753.63,0.00033972,8]
[326446441,1714915875979,-834.2,0.00033972,8]
[326446442,1714915875989,-987.05,0.00033972,8]
[326446443,1714915875998,-1091.6,0.00033972,8]
[326446444,1714915876009,-1245.04,0.00033972,8]
[326446445,1714915876019,-1656.75,0.00033972,8]
[326446446,1714915876029,-2873.84,0.00033972,8]
[326446447,1714915876038,-500.0,0.00033972,8]
[326446448,1714915876048,-1096.15,0.00033972,8]
[326446449,1714915876058,-225.80278169,0.00033972,8]
[326446450,1714915876067,-500.0,0.00033972,8]
[326446451,1714915876076,-1452.23,0.00033972,8]
[326446452,1714915876086,-500.0,0.00033972,8]
[326446453,1714915876096,-500.0,0.00033972,8]
[326446454,1714915876105,-399.34914991,0.00033972,8]
[326446455,1714915876114,-711.87,0.00033972,8]
[326446456,1714915876124,-500.0,0.00033972,8]
[326446457,1714915876134,-2175.12,0.00033972,8]
[326446458,1714915876144,-3822.0,0.00033972,8]
[326446459,1714915876154,-500.0,0.00033972,8]
[326446460,1714915876164,-880.86,0.00033972,8]
[326446461,1714915876173,-1224.63,0.00033972,8]
[326446462,1714915876183,-500.0,0.00033972,8]
[326446463,1714915876192,-611.5,0.00033972,8]
[326446464,1714915876206,-500.0,0.00033972,8]
[326446465,1714915876215,-500.0,0.00033972,8]
[326446466,1714915876224,-1045.1,0.00033972,8]
[326446467,1714915876233,-441.96898755,0.00033972,8]
[326446468,1714915876242,-1300.91,0.00033972,8]
[326446469,1714915876251,-539.73,0.00033972,8]
[326446470,1714915876261,-1951.33,0.00033972,8]
[326446471,1714915876270,-500.0,0.00033972,8]
[326446472,1714915876278,-1083.01,0.00033972,8]
[326446473,1714915876287,-1376.09,0.00033972,8]
[326446474,1714915876296,-1401.49,0.00033972,8]
[326446475,1714915876305,-831.03,0.00033972,8]
[326446476,1714915876315,-1787.01,0.00033972,8]
[326446477,1714915876324,-660.71,0.00033972,8]
[326446478,1714915876333,-500.0,0.00033972,8]
[326446479,1714915876342,-2124.16,0.00033972,8]
[326446480,1714915876351,-1770.29,0.00033972,8]
[326446481,1714915876360,-2331.36,0.00033972,8]
[326446482,1714915876370,-500.0,0.00033972,8]
[326446483,1714915876379,-873.01,0.00033972,8]
[326446484,1714915876388,-926.33,0.00033972,8]
[326446485,1714915876397,-500.0,0.00033972,8]
[326446486,1714915876407,-3815.69,0.00033972,8]
[326446487,1714915876416,-2580.58,0.00033972,8]
[326446488,1714915876425,-1022.84,0.00033972,8]
[326446489,1714915876435,-500.0,0.00033972,8]
[326446490,1714915876444,-637.03,0.00033972,8]
[326446491,1714915876453,-822.69,0.00033972,8]
[326446492,1714915876462,-500.0,0.00033972,8]
[326446493,1714915876472,-500.0,0.00033972,8]
[326446494,1714915876481,-500.0,0.00033972,8]
[326446495,1714915876491,-730.41,0.00033972,8]
[326446496,1714915876499,-1193.5,0.00033972,8]
[326446497,1714915876509,-2275.05,0.00033972,8]
[326446498,1714915876518,-681.87,0.00033972,8]
[326446499,1714915876527,-2274.67,0.00033972,8]
[326446500,1714915876536,-794.98,0.00033972,8]
[326446501,1714915876545,-515.18,0.00033972,8]
[326446502,1714915876555,-3927.92,0.00033972,8]
[326446503,1714915876564,-652.04,0.00033972,8]
[326446504,1714915876573,-785.34,0.00033972,8]
[326446505,1714915876582,-204.60564832,0.00033972,8]
[326446506,1714915876592,-766.99,0.00033972,8]
[326446507,1714915876601,-663.69,0.00033972,8]
[326446508,1714915876610,-611.14,0.00033972,8]
[326446509,1714915876620,-594.25,0.00033972,8]
[326446510,1714915876628,-1116.62,0.00033972,8]
[326446511,1714915876638,-5374.57,0.00033972,8]
[326446512,1714915876647,-500.0,0.00033972,8]
[326446513,1714915876656,-643.73,0.00033972,8]
[326446514,1714915876666,-2565.05,0.00033972,8]
[326446515,1714915876675,-500.0,0.00033972,8]
[326446516,1714915876684,-500.0,0.00033972,8]
[326446517,1714915876694,-1343.72,0.00033972,8]
[326446518,1714915876703,-2553.24,0.00033972,8]
[326446519,1714915876713,-529.9,0.00033972,8]
[326446520,1714915876722,-1752.05,0.00033972,8]
[326446521,1714915876732,-6360.03,0.00033972,8]
[326446522,1714915876743,-1888.12,0.00033972,8]
[326446523,1714915876753,-500.0,0.00033972,8]
[326446524,1714915876763,-13445.74,0.00033972,8]
[326446525,1714915876772,-500.0,0.00033972,8]
[326446526,1714915876781,-1176.4,0.00033972,8]
[326446527,1714915876791,-787.99,0.00033972,8]
[326446528,1714915876802,-500.0,0.00033972,8]
[326446529,1714915876811,-4766.51,0.00033972,8]
[326446530,1714915876821,-500.0,0.00033972,8]
[326446531,1714915876830,-1483.93,0.00033972,8]
[326446532,1714915876841,-21188.73,0.00033972,8]
[326446533,1714915876853,-500.0,0.00033972,8]
[326446534,1714915876864,-519.7,0.00033972,8]
[326446535,1714915876873,-826.92,0.00033972,8]
[326446536,1714915876882,-1683.27,0.00033972,8]
[326446537,1714915876892,-592.84,0.00033972,8]
[326446538,1714915876903,-3339.31,0.00033972,8]
[326446539,1714915876911,-500.0,0.00033972,8]
[326446540,1714915876921,-7252.85,0.00033972,8]
[326446541,1714915876930,-924.39,0.00033972,8]
[326446542,1714915876939,-431.27492889,0.00033972,8]
[326446543,1714915876948,-2520.84,0.00033972,8]
[326446544,1714915876958,-520.75,0.00033972,8]
[326446545,1714915876967,-5430.33,0.00033972,8]
[326446546,1714915876976,-5345.4,0.00033972,8]
[326446547,1714915876986,-500.0,0.00033972,8]
[326446548,1714915876995,-500.0,0.00033972,8]
[326446549,1714915877005,-500.0,0.00033972,8]
[326446550,1714915877016,-1991.68,0.00033972,8]
[326446551,1714915877025,-1714.51,0.00033972,8]
[326446552,1714915877034,-500.0,0.00033972,8]
[326446553,1714915877044,-500.0,0.00033972,8]
[326446554,1714915877053,-1844.66,0.00033972,8]
[326446555,1714915877062,-1895.16,0.00033972,8]
[326446556,1714915877072,-4129.35,0.00033972,8]
[326446557,1714915877081,-36117.33,0.00033972,8]
[326446558,1714915877091,-1482.65,0.00033972,8]
[326446559,1714915877100,-1421.18,0.00033972,8]
[326446560,1714915877109,-600.27,0.00033972,8]
[326446561,1714915877119,-4440.77,0.00033972,8]
[326446562,1714915877130,-53920.09,0.00033972,8]
[326446563,1714915877139,-1005.54,0.00033972,8]
[326446564,1714915877150,-579.12805177,0.00033972,8]
[326446565,1714915877160,-650.32,0.00033972,8]
[326446566,1714915877171,-1485.76,0.00033972,8]
[326446567,1714915877180,-4096.05,0.00033972,8]
[326446568,1714915877190,-4019.71,0.00033972,8]
[326446569,1714915877201,-998.05,0.00033972,8]
[326446570,1714915877213,-2578.28,0.00033972,8]
[326446571,1714915877223,-5575.77,0.00033972,8]
[326446572,1714915877232,-500.0,0.00033972,8]
[326446573,1714915877241,-8636.31,0.00033972,8]
[326446574,1714915877251,-500.0,0.00033972,8]
[326446575,1714915877262,-500.0,0.00033972,8]
[326446576,1714915877272,-1285.05,0.00033972,8]
[326446577,1714915877281,-3689.45,0.00033972,8]
[326446578,1714915877291,-531.19,0.00033972,8]
[326446579,1714915877300,-3833.57,0.00033972,8]
[326446580,1714915877309,-1586.24,0.00033972,8]
[326446581,1714915877319,-1238.29,0.00033972,8]
[326446582,1714915877328,-706.62,0.00033972,8]
[326446583,1714915877338,-4259.24,0.00033972,8]
[326446584,1714915877347,-890.07,0.00033972,8]
[326446585,1714915877357,-877.78,0.00033972,8]
[326446586,1714915877366,-12601.05,0.00033972,8]
[326446587,1714915877375,-1819.72,0.00033972,8]
[326446588,1714915877385,-5407.43,0.00033972,8]
[326446589,1714915877394,-500.0,0.00033972,8]
[326446590,1714915877404,-500.0,0.00033972,8]
[326446591,1714915877413,-500.0,0.00033972,8]
[326446592,1714915877423,-4446.7,0.00033972,8]
[326446593,1714915877432,-4699.42,0.00033972,8]
[326446594,1714915877443,-1098.5,0.00033972,8]
[326446595,1714915877452,-1426.55,0.00033972,8]
[326446596,1714915877461,-1007.09,0.00033972,8]
[326446597,1714915877471,-3650.32,0.00033972,8]
[326446598,1714915877481,-500.0,0.00033972,8]
[326446599,1714915877490,-500.0,0.00033972,8]
[326446600,1714915877500,-500.0,0.00033972,8]
[326446601,1714915877510,-7783.47,0.00033972,8]
[326446602,1714915877520,-653.33,0.00033972,8]
[326446603,1714915877530,-25149.19,0.00033972,8]
[326446604,1714915877540,-500.0,0.00033972,8]
[326446605,1714915877550,-8319.27,0.00033972,8]
[326446606,1714915877559,-500.0,0.00033972,8]
[326446607,1714915877568,-500.0,0.00033972,8]
[326446608,1714915877577,-1150.87,0.00033972,8]
[326446609,1714915877587,-9169.92,0.00033972,8]
[326446610,1714915877596,-2150.34,0.00033972,8]
[326446611,1714915877605,-500.0,0.00033972,8]
[326446612,1714915877614,-3608.41,0.00033972,8]
[326446613,1714915877623,-2287.86,0.00033972,8]
[326446614,1714915877633,-524.33,0.00033972,8]
[326446615,1714915877644,-16094.57,0.00033972,8]
[326446616,1714915877653,-1397.44,0.00033972,8]
[326446617,1714915877662,-2574.82,0.00033972,8]
[326446618,1714915877672,-4666.27,0.00033972,8]
[326446619,1714915877681,-800.06,0.00033972,8]
[326446620,1714915877690,-5867.67,0.00033972,8]
[326446621,1714915877700,-1011.87,0.00033972,8]
[326446622,1714915877710,-500.0,0.00033972,8]
[326446623,1714915877718,-2556.72,0.00033972,8]
[326446624,1714915877728,-500.0,0.00033972,8]
[326446625,1714915877737,-1934.18,0.00033972,8]
[326446626,1714915877746,-500.0,0.00033972,8]
[326446627,1714915877755,-1210.64,0.00033972,8]
[326446628,1714915877766,-4890.28,0.00033972,8]
[326446629,1714915877775,-1046.43,0.00033972,8]
[326446630,1714915877784,-4078.34,0.00033972,8]
[326446631,1714915877793,-1050.31,0.00033972,8]
[326446632,1714915877802,-712.61,0.00033972,8]
[326446633,1714915877812,-5322.09,0.00033972,8]
[326446634,1714915877822,-1365.74,0.00033972,8]
[326446635,1714915877832,-500.0,0.00033972,8]
[326446636,1714915877842,-871.21,0.00033972,8]
[326446637,1714915877851,-1199.26,0.00033972,8]
[326446638,1714915877860,-500.0,0.00033972,8]
[326446639,1714915877869,-500.0,0.00033972,8]
[326446640,1714915878085,-4022.81,0.00033972,8]
[326446641,1714915878096,-1499.35,0.00033972,8]
[326446642,1714915878107,-1158.44,0.00033972,8]
[326446643,1714915878117,-1682.57,0.00033972,8]
[326446644,1714915878128,-500.0,0.00033972,8]
[326446645,1714915878138,-1409.29,0.00033972,8]
[326446646,1714915878149,-2320.99,0.00033972,8]
[326446647,1714915878161,-3519.46,0.00033972,8]
[326446648,1714915878172,-4262.11,0.00033972,8]
[326446649,1714915878182,-1993.89,0.00033972,8]
[326446650,1714915878193,-521.92,0.00033972,8]
[326446651,1714915878209,-831.6,0.00033972,8]
[326446652,1714915878219,-500.0,0.00033972,8]
[326446653,1714915878230,-500.0,0.00033972,8]
[326446654,1714915878239,-1079.33,0.00033972,8]
[326446655,1714915878250,-1831.59,0.00033972,8]
[326446656,1714915878267,-8414.0,0.00033972,8]
[326446657,1714915878278,-500.0,0.00033972,8]
[326446658,1714915878290,-2427.21,0.00033972,8]
[326446659,1714915878302,-5303.85,0.00033972,8]
[326446660,1714915878313,-1775.51,0.00033972,8]
[326446661,1714915878323,-5490.49,0.00033972,8]
[326446662,1714915878334,-4588.6,0.00033972,8]
[326446663,1714915878345,-1455.28,0.00033972,8]
[326446664,1714915878356,-1465.44,0.00033972,8]
[326446665,1714915878366,-509.46,0.00033972,8]
[326446666,1714915878377,-15635.43,0.00033972,8]
[326446667,1714915878389,-30934.75,0.00033972,8]
[326446668,1714915878400,-8885.57,0.00033972,8]
[326446669,1714915878411,-6939.18,0.00033972,8]
[326446670,1714915878421,-500.0,0.00033972,8]
[326446671,1714915878432,-24294.82,0.00033972,8]
[326446672,1714915878443,-3388.55,0.00033972,8]
[326446673,1714915878454,-1239.15,0.00033972,8]
[326446674,1714915878465,-1798.71,0.00033972,8]
[326446675,1714915878477,-15111.33,0.00033972,8]
[326446676,1714915878488,-2498.11,0.00033972,8]
[326446677,1714915878499,-2140.6,0.00033972,8]
[326446678,1714915878515,-4894.16,0.00033972,8]
[326446679,1714915878526,-7195.43,0.00033972,8]
[326446680,1714915878537,-513.67,0.00033972,8]
[326446681,1714915878547,-605.45,0.00033972,8]
[326446682,1714915878558,-720.25,0.00033972,8]
[326446683,1714915878569,-3350.4,0.00033972,8]
[326446684,1714915878579,-2007.91,0.00033972,8]
[326446685,1714915878590,-1480.46,0.00033972,8]
[326446686,1714915878600,-4600.17,0.00033972,8]
[326446687,1714915878611,-6247.31,0.00033972,8]
[326446688,1714915878622,-941.38,0.00033972,8]
[326446689,1714915878633,-5529.77,0.00033972,8]
[326446690,1714915878643,-1802.34,0.00033972,8]
[326446691,1714915878652,-3730.21,0.00033972,8]
[326446692,1714915878662,-5522.61,0.00033972,8]
[326446693,1714915878675,-17267.81,0.00033972,8]
[326446694,1714915878686,-69451.25,0.00033972,8]
[326446695,1714915878695,-940.56,0.00033972,8]
[326446696,1714915878705,-2059.23,0.00033972,8]
[326446697,1714915878716,-4875.89,0.00033972,8]
[326446698,1714915878726,-1765.66,0.00033972,8]
[326446699,1714915878736,-500.0,0.00033972,8]
[326446700,1714915878746,-500.0,0.00033972,8]
[326446701,1714915878756,-2386.12,0.00033972,8]
[326446702,1714915878770,-4957.65,0.00033972,8]
[326446703,1714915878780,-3790.19,0.00033972,8]
[326446704,1714915878789,-4018.28,0.00033972,8]
[326446705,1714915878799,-7084.1,0.00033972,8]
[326446706,1714915878808,-3318.52,0.00033972,8]
[326446707,1714915878818,-4177.62,0.00033972,8]
[326446708,1714915878828,-1507.63,0.00033972,8]
[326446709,1714915878838,-500.0,0.00033972,8]
[326446710,1714915878847,-754.04,0.00033972,8]
[326446711,1714915878857,-5879.51,0.00033972,8]
[326446712,1714915878867,-3812.68,0.00033972,8]
[326446713,1714915878876,-2805.64,0.00033972,8]
[326446714,1714915878886,-9642.06,0.00033972,8]
[326446715,1714915878895,-500.0,0.00033972,8]
[326446716,1714915878904,-561.09,0.00033972,8]
[326446717,1714915878914,-500.0,0.00033972,8]
[326446718,1714915878924,-4065.58,0.00033972,8]
[326446719,1714915878933,-1084.59,0.00033972,8]
[326446720,1714915878942,-500.0,0.00033972,8]
[326446721,1714915878952,-8551.3,0.00033972,8]
[326446722,1714915878961,-4272.51,0.00033972,8]
[326446723,1714915878971,-5333.56,0.00033972,8]
[326446724,1714915878980,-6828.25,0.00033972,8]
[326446725,1714915878990,-4435.83,0.00033972,8]
[326446726,1714915878999,-1521.12,0.00033972,8]
[326446727,1714915879009,-3170.47,0.00033972,8]
[326446728,1714915879022,-1351.61,0.00033972,8]
[326446729,1714915879031,-500.0,0.00033972,8]
[326446730,1714915879040,-8295.7,0.00033972,8]
[326446731,1714915879049,-681.05,0.00033972,8]
[326446732,1714915879058,-500.0,0.00033972,8]
[326446733,1714915879067,-2108.87,0.00033972,8]
[326446734,1714915879076,-507.95,0.00033972,8]
[326446735,1714915879086,-4558.37,0.00033972,8]
[326446736,1714915879095,-2389.78,0.00033972,8]
[326446737,1714915879105,-2122.33,0.00033972,8]
[326446738,1714915879114,-13853.01,0.00033972,8]
[326446739,1714915879124,-3331.4,0.00033972,8]
[326446740,1714915879134,-1498.97,0.00033972,8]
[326446741,1714915879144,-1462.76,0.00033972,8]
[326446742,1714915879153,-500.0,0.00033972,8]
[326446743,1714915879163,-500.0,0.00033972,8]
[326446744,1714915879173,-5038.55,0.00033972,8]
[326446745,1714915879183,-500.0,0.00033972,8]
[326446746,1714915879192,-500.0,0.00033972,8]
[326446747,1714915879203,-2135.41,0.00033972,7]
[326446748,1714915879212,-3362.19,0.00033972,8]
[326446749,1714915879222,-1239.44,0.00033972,8]
[326446750,1714915879235,-2835.44,0.00033972,8]
[326446751,1714915879245,-2315.78,0.00033972,8]
[326446752,1714915879255,-10892.57,0.00033972,8]
[326446753,1714915879270,-50713.72,0.00033972,8]
[326446754,1714915879279,-10513.89,0.00033972,8]
[326446755,1714915879287,-500.0,0.00033972,8]
[326446756,1714915879297,-14214.53,0.00033972,8]
[326446757,1714915879306,-500.0,0.00033972,8]
[326446758,1714915879315,-17977.13,0.00033972,8]
[326446759,1714915879324,-690.67,0.00033972,8]
[326446760,1714915879332,-2665.74,0.00033972,8]
[326446761,1714915879341,-523.65813732,0.00033972,8]
[326446762,1714915879350,-11902.06,0.00033972,8]
[326446763,1714915879360,-1229.29,0.00033972,8]
[326446764,1714915879369,-714.36,0.00033972,8]
[326446765,1714915879379,-1153.38,0.00033972,8]
[326446766,1714915879389,-1369.3,0.00033972,8]
[326446767,1714915879398,-9044.7,0.00033972,8]
[326446768,1714915879407,-1605.66,0.00033972,8]
[326446769,1714915879416,-500.0,0.00033972,8]
[326446770,1714915879425,-7530.19,0.00033972,8]